bitfinex/quotes_BTCUSD_20250825
["timestamp","ask_amount","ask_price","bid_price","bid_amount"]
[1756132627233,0.01451014,112350.0,112340.0,0.40550181]
[1756132627448,0.01393014,112350.0,112340.0,0.42594083]
[1756132627667,0.01393014,112350.0,112340.0,0.45720827]
[1756132628112,0.01393014,112350.0,112340.0,0.45820827]
[1756132628392,0.01393014,112350.0,112340.0,0.54509302]
[1756132629226,0.01393014,112350.0,112340.0,0.5920056]
[1756132630357,0.01393014,112350.0,112340.0,0.5960056]
[1756132630847,0.01393014,112350.0,112340.0,0.5950056]
[1756132631083,0.24906763,112390.0,112370.0,0.19541688]
[1756132631287,0.34058,112380.0,112370.0,0.26385688]
[1756132631504,0.5185476,112380.0,112370.0,0.42025688]
[1756132631920,0.34058,112380.0,112370.0,0.42025688]
[1756132632563,0.5185476,112380.0,112370.0,0.42025688]
[1756132633227,0.34058,112380.0,112370.0,0.42025688]
[1756132633480,0.5185476,112380.0,112370.0,0.42025688]
[1756132633687,0.34058,112380.0,112370.0,0.42240688]
[1756132634130,0.34,112380.0,112370.0,0.42539688]
[1756132634812,0.35392741,112380.0,112370.0,0.42539688]
[1756132635468,0.01392741,112380.0,112370.0,0.42539688]
[1756132636129,0.01392741,112380.0,112370.0,0.26899688]
[1756132636356,0.01392741,112380.0,112370.0,0.42535688]
[1756132636798,0.01392741,112380.0,112370.0,0.69355688]
[1756132637029,0.01392741,112380.0,112370.0,0.53719688]
[1756132637223,0.01392741,112380.0,112370.0,0.69655688]
[1756132639065,0.01392741,112380.0,112370.0,0.69855688]
[1756132639560,0.01392741,112380.0,112370.0,0.54219688]
[1756132639778,0.01392741,112380.0,112370.0,0.69855688]
[1756132640225,0.19247501,112380.0,112370.0,0.69339246]
[1756132640452,0.19247501,112380.0,112370.0,0.35908902]
[1756132640923,0.53247501,112380.0,112370.0,0.35908902]
[1756132641174,0.53247501,112380.0,112370.0,0.51540902]
[1756132641398,0.34058,112380.0,112370.0,0.69853246]
[1756132641624,0.34,112380.0,112370.0,0.69553246]
[1756132642058,0.34,112380.0,112370.0,0.69653246]
[1756132642265,0.37556828,112390.0,112380.0,0.19541662]
[1756132642507,0.51853177,112390.0,112380.0,0.35173662]
[1756132643165,0.51853177,112390.0,112380.0,0.35388662]
[1756132643386,0.34058,112390.0,112380.0,0.35687662]
[1756132643617,0.51853177,112390.0,112380.0,0.35687662]
[1756132643833,0.34058,112390.0,112380.0,0.35687662]
[1756132644059,0.34,112390.0,112380.0,0.35687662]
[1756132644287,0.5224269,112400.0,112390.0,0.19540079]
[1756132644508,0.5224269,112400.0,112390.0,0.46874079]
[1756132644719,0.5224269,112400.0,112390.0,0.62506079]
[1756132644961,0.53635142,112400.0,112390.0,0.62506079]
[1756132645830,0.53635142,112400.0,112390.0,0.44374554]
[1756132646038,0.53635142,112400.0,112390.0,0.28742554]
[1756132646246,0.53635142,112400.0,112390.0,0.31891543]
[1756132646469,0.53635142,112400.0,112390.0,0.47519543]
[1756132646676,0.53635142,112400.0,112390.0,0.44370554]
[1756132646902,0.53635142,112400.0,112390.0,0.47519543]
[1756132647136,0.53635142,112400.0,112390.0,0.44370554]
[1756132647371,0.53635142,112400.0,112390.0,0.47519543]
[1756132648268,0.53635142,112400.0,112390.0,0.47819543]
[1756132649391,0.53635142,112400.0,112390.0,0.47815543]
[1756132651078,0.53635142,112400.0,112390.0,0.48115543]
[1756132651423,0.53635142,112400.0,112390.0,0.32491543]
[1756132651846,0.53635142,112400.0,112390.0,0.48115543]
[1756132652886,0.53635142,112400.0,112390.0,0.32491543]
[1756132653132,0.53635142,112400.0,112390.0,0.48111543]
[1756132653353,0.5224269,112400.0,112390.0,0.32491543]
[1756132653780,0.5224269,112400.0,112390.0,0.48111543]
[1756132654205,0.5224269,112400.0,112390.0,0.88111543]
[1756132654627,0.28927507,112400.0,112390.0,0.84962554]
[1756132656188,0.28927507,112400.0,112390.0,0.69342554]
[1756132656461,0.28927507,112400.0,112390.0,0.84958554]
[1756132656677,0.28927507,112400.0,112390.0,0.69342554]
[1756132656893,0.28927507,112400.0,112390.0,0.84958554]
[1756132657117,0.28927507,112400.0,112390.0,1.11778554]
[1756132661437,0.28927507,112400.0,112390.0,1.11774554]
[1756132661893,0.28927507,112400.0,112390.0,0.96162554]
[1756132662125,0.28985507,112400.0,112390.0,0.86960079]
[1756132662350,0.28985507,112400.0,112390.0,0.60827177]
[1756132662782,0.46779101,112400.0,112390.0,0.46960079]
[1756132663002,0.28985507,112400.0,112390.0,0.35752079]
[1756132663450,0.46779101,112400.0,112390.0,0.35452079]
[1756132663917,0.28985507,112400.0,112390.0,0.35452079]
[1756132664373,0.28985507,112400.0,112390.0,0.35652079]
[1756132664884,0.11852035,112400.0,112390.0,0.36180079]
[1756132665131,0.11794035,112400.0,112390.0,0.44868554]
[1756132665386,0.11794035,112400.0,112390.0,0.44568554]
[1756132665840,0.11794035,112400.0,112390.0,0.44768554]
[1756132666281,0.11794035,112400.0,112390.0,0.44568554]
[1756132666612,0.11794035,112400.0,112390.0,0.44368554]
[1756132667039,0.11794035,112400.0,112390.0,0.84768554]
[1756132667493,0.11794035,112400.0,112390.0,1.80893016]
[1756132667707,0.11794035,112400.0,112390.0,1.80693016]
[1756132667943,0.11794035,112400.0,112390.0,0.84568554]
[1756132668889,0.11794035,112400.0,112390.0,1.11688554]
[1756132669347,0.11794035,112400.0,112390.0,1.11488554]
[1756132669780,0.11794035,112400.0,112390.0,1.11788554]
[1756132670558,0.11794035,112400.0,112390.0,1.11780554]
[1756132672525,0.11794035,112400.0,112390.0,1.11776554]
[1756132672724,0.11794035,112400.0,112390.0,0.96176554]
[1756132673012,0.11794035,112400.0,112390.0,1.11776554]
[1756132673208,0.11794035,112400.0,112390.0,1.16467812]
[1756132673413,1e-08,112400.0,112390.0,2.46592274]
[1756132674600,1e-08,112400.0,112390.0,2.46292274]
[1756132675026,1e-08,112400.0,112390.0,2.42101016]
[1756132675370,1e-08,112400.0,112390.0,2.46527556]
[1756132676027,8.544e-05,112400.0,112390.0,2.46827556]
[1756132677088,1e-08,112400.0,112390.0,2.46827556]
[1756132677731,1e-08,112400.0,112390.0,2.31227556]
[1756132677954,1e-08,112400.0,112390.0,2.46823556]
[1756132678188,0.01711932,112420.0,112390.0,2.46823556]
[1756132678409,1.96898344,112440.0,112430.0,1.1565821]
[1756132678630,1.96898344,112440.0,112430.0,1.68381685]
[1756132678857,1.96906889,112440.0,112430.0,0.96975223]
[1756132679083,1.96964889,112440.0,112430.0,1.12046223]
[1756132679706,1.96964889,112440.0,112430.0,0.75066223]
[1756132679907,1.96964889,112440.0,112430.0,0.43814223]
[1756132680328,1.97001889,112440.0,112430.0,0.35125748]
[1756132680524,1.96964889,112440.0,112430.0,0.35125748]
[1756132680777,1.97001889,112440.0,112430.0,0.35125748]
[1756132680923,1.96964889,112440.0,112430.0,0.38273076]
[1756132681928,1.97001889,112440.0,112430.0,0.22681076]
[1756132682168,1.97001889,112440.0,112430.0,0.38269076]
[1756132682398,1.97001889,112440.0,112430.0,0.42211057]
[1756132682818,1.96964889,112440.0,112430.0,0.42211057]
[1756132683472,1.96964889,112440.0,112430.0,0.42411057]
[1756132684132,1.96964889,112440.0,112430.0,0.26623057]
[1756132684344,1.96906889,112440.0,112430.0,0.42418057]
[1756132684572,1.96906889,112440.0,112430.0,0.42732057]
[1756132685209,1.96906889,112440.0,112430.0,0.51420532]
[1756132685857,1.96964889,112440.0,112430.0,0.50899532]
[1756132686061,1.96964889,112440.0,112430.0,0.35311532]
[1756132686285,1.96964889,112440.0,112430.0,0.50895532]
[1756132687654,1.96964889,112440.0,112430.0,0.51416532]
[1756132687853,1.96964889,112440.0,112430.0,0.51516532]
[1756132688346,1.96906889,112440.0,112430.0,0.51516532]
[1756132688552,1.96906889,112440.0,112430.0,0.56238122]
[1756132690479,1.96906889,112440.0,112430.0,0.80654122]
[1756132690694,1.96906889,112440.0,112430.0,0.96234122]
[1756132690903,1.96906889,112440.0,112430.0,0.94622616]
[1756132691121,1.96906889,112440.0,112430.0,0.99344206]
[1756132691314,1.96906889,112440.0,112430.0,1.95468668]
[1756132693520,1.96906889,112440.0,112430.0,0.99344206]
[1756132693730,1.96906889,112440.0,112430.0,1.95468668]
[1756132694179,1.96906889,112440.0,112430.0,1.79888668]
[1756132694359,1.96906889,112440.0,112430.0,1.95464668]
[1756132694877,1.96906889,112440.0,112430.0,0.96192878]
[1756132695093,1.96906889,112440.0,112430.0,1.9231734]
[1756132695489,1.96906889,112440.0,112430.0,2.1913734]
[1756132695724,1.96906889,112440.0,112430.0,2.1904734]
[1756132695941,1.96906889,112440.0,112430.0,2.0347134]
[1756132696159,1.96906889,112440.0,112430.0,2.22180833]
[1756132696377,1.96906889,112440.0,112430.0,1.07546878]
[1756132696593,1.96964889,112440.0,112430.0,1.22601878]
[1756132697009,1.96964889,112440.0,112430.0,1.22915878]
[1756132697224,1.70086889,112440.0,112430.0,2.33533503]
[1756132697439,1.08775092,112440.0,112430.0,2.33533503]
[1756132697663,1.02582633,112440.0,112430.0,2.33533503]
[1756132697887,1.02582633,112440.0,112430.0,1.10105288]
[1756132698077,1.02582633,112440.0,112430.0,2.2447575]
[1756132698336,1.02582633,112440.0,112430.0,2.27608685]
[1756132699532,1.02582633,112440.0,112430.0,1.28810223]
[1756132700229,1.02582633,112440.0,112430.0,1.28806223]
[1756132700438,1.02582633,112440.0,112430.0,2.24930685]
[1756132702573,1.02582633,112440.0,112430.0,2.09362685]
[1756132702785,1.02582633,112440.0,112430.0,1.28285223]
[1756132702786,1.02640633,112440.0,112430.0,1.28285223]
[1756132703026,1.02640633,112440.0,112430.0,0.91175139]
[1756132703297,1.02640633,112440.0,112430.0,0.73862237]
[1756132703524,1.02677633,112440.0,112430.0,0.89430237]
[1756132703734,1.02640633,112440.0,112430.0,0.86297302]
[1756132703945,1.02677633,112440.0,112430.0,0.86297302]
[1756132704173,1.02640633,112440.0,112430.0,0.86297302]
[1756132704401,1.02640633,112440.0,112430.0,0.46297302]
[1756132704622,1.02582633,112440.0,112430.0,0.46518302]
[1756132704851,1.02582633,112440.0,112430.0,1.47520601]
[1756132705538,1.02640633,112440.0,112430.0,0.51396139]
[1756132705753,1.02640633,112440.0,112430.0,0.50871139]
[1756132706242,1.02640633,112440.0,112430.0,0.35307139]
[1756132706671,1.02640633,112440.0,112430.0,0.50871139]
[1756132706911,1.02677633,112440.0,112430.0,0.40437762]
[1756132707128,1.02640633,112440.0,112430.0,0.39049729]
[1756132707402,1.02677633,112440.0,112430.0,0.42182664]
[1756132707622,1.02677633,112440.0,112430.0,0.43771319]
[1756132708063,1.02677633,112440.0,112430.0,0.43871319]
[1756132708498,1.02677633,112440.0,112430.0,0.43971319]
[1756132708731,1.02677633,112440.0,112430.0,0.43871319]
[1756132708976,1.20464897,112440.0,112430.0,0.28207319]
[1756132709176,1.20464897,112440.0,112430.0,0.39829338]
[1756132709404,1.20464897,112440.0,112430.0,0.06476492]
[1756132709645,1.21856775,112440.0,112430.0,0.22040492]
[1756132709858,1.21856775,112440.0,112430.0,0.39829338]
[1756132710150,1.21856775,112440.0,112430.0,0.22040492]
[1756132710374,1.21856775,112440.0,112430.0,0.25187679]
[1756132711678,1.21856775,112440.0,112430.0,0.0001]
[1756132711887,1.20464897,112440.0,112430.0,0.0001]
[1756132712085,1.34268059,112440.0,112430.0,0.0001]
[1756132712301,1.34268059,112440.0,112430.0,0.15574]
[1756132713093,1.49832059,112440.0,112430.0,0.0001]
[1756132713431,1.58519024,112440.0,112430.0,0.0001]
[1756132713620,1.61169739,112440.0,112430.0,0.0001]
[1756132713842,1.42955024,112440.0,112430.0,0.0001]
[1756132714074,1.58519024,112440.0,112430.0,0.0001]
[1756132714519,1.42955024,112440.0,112430.0,0.0001]
[1756132714745,1.58515024,112440.0,112430.0,0.0001]
[1756132714968,1.56847085,112440.0,112430.0,0.0001]
[1756132715212,1.59905068,112440.0,112430.0,0.0001]
[1756132715640,1.58239337,112440.0,112430.0,0.0001]
[1756132715849,1.59904342,112440.0,112430.0,0.0001]
[1756132716066,1.60304342,112440.0,112430.0,0.0001]
[1756132716320,6.60304342,112440.0,112430.0,0.0001]
[1756132716539,6.70304342,112440.0,112430.0,0.0001]
[1756132716754,0.51792011,112410.0,112400.0,0.0001]
[1756132716983,0.58808255,112410.0,112400.0,0.0001]
[1756132717407,0.61521455,112410.0,112400.0,0.0001]
[1756132717625,0.62913903,112410.0,112400.0,0.0001]
[1756132718349,0.55955659,112410.0,112400.0,0.0001]
[1756132718782,0.55918659,112410.0,112400.0,0.0001]
[1756132719430,0.55918659,112410.0,112400.0,0.0031]
[1756132720076,0.59064962,112410.0,112400.0,0.18610594]
[1756132720296,0.59006962,112410.0,112400.0,0.18610594]
[1756132720722,0.04068648,112410.0,112400.0,0.20355496]
[1756132720930,0.01392448,112410.0,112400.0,0.20055496]
[1756132722043,0.01392448,112410.0,112400.0,1.16179958]
[1756132722461,0.366756,112430.0,112420.0,0.1953533]
[1756132722681,0.026756,112430.0,112420.0,0.18197428]
[1756132722907,0.366756,112430.0,112420.0,0.18197428]
[1756132723346,0.8383432,112440.0,112430.0,0.19533748]
[1756132723594,0.8383432,112440.0,112430.0,0.20040748]
[1756132723828,1.01679584,112440.0,112430.0,0.19533748]
[1756132724067,1.38354684,112440.0,112430.0,0.19333748]
[1756132724294,1.2056742,112440.0,112430.0,0.19333748]
[1756132724505,1.1789232,112440.0,112430.0,0.19233748]
[1756132724747,1.35679584,112440.0,112430.0,0.19435748]
[1756132724972,1.2056742,112440.0,112430.0,0.19435748]
[1756132725203,1.38354684,112440.0,112430.0,0.19435748]
[1756132725424,1.38654684,112440.0,112430.0,0.19233748]
[1756132725894,1.22259441,112440.0,112430.0,0.19538748]
[1756132726110,1.40046705,112440.0,112430.0,0.19740748]
[1756132726324,1.22259441,112440.0,112430.0,0.19740748]
[1756132726511,1.22259441,112440.0,112430.0,0.19538748]
[1756132727169,1.40046705,112440.0,112430.0,0.19233748]
[1756132727388,1.39746705,112440.0,112430.0,0.19233748]
[1756132728033,1.39846705,112440.0,112430.0,0.19233748]
[1756132728253,1.22059441,112440.0,112430.0,0.19740748]
[1756132728476,1.22001441,112440.0,112430.0,0.19740748]
[1756132728698,1.18884977,112440.0,112430.0,0.19740748]
[1756132729127,1.18884977,112440.0,112430.0,1.1586521]
[1756132729369,0.82209877,112440.0,112430.0,1.24553685]
[1756132730046,1.19286417,112440.0,112430.0,0.01951902]
[1756132730268,1.37073681,112440.0,112430.0,0.01444902]
[1756132730958,1.37073681,112440.0,112430.0,0.01744902]
[1756132731175,1.37073681,112440.0,112430.0,0.02251902]
[1756132731394,1.37073681,112440.0,112430.0,0.003]
[1756132731831,1.3571866,112440.0,112430.0,0.003]
[1756132732052,1.3839406,112440.0,112430.0,0.003]
[1756132732275,0.51792011,112410.0,112400.0,0.0001]
[1756132732498,0.51850011,112410.0,112400.0,0.0001]
[1756132732922,0.54525911,112410.0,112400.0,0.0001]
[1756132733407,0.61794687,112410.0,112400.0,0.0001]
[1756132733864,0.54525911,112410.0,112400.0,0.0001]
[1756132737043,0.55918391,112410.0,112400.0,0.0001]
[1756132737519,0.55918391,112410.0,112400.0,0.0051]
[1756132737943,0.55918391,112410.0,112400.0,0.0001]
[1756132738386,0.50194171,112410.0,112400.0,0.0001]
[1756132739519,0.56209863,112410.0,112400.0,0.0001]
[1756132739750,0.56246863,112410.0,112400.0,0.0001]
[1756132740230,0.56209863,112410.0,112400.0,0.0001]
[1756132740445,0.56246863,112410.0,112400.0,0.0001]
[1756132740660,0.56346863,112410.0,112400.0,0.0001]
[1756132740967,0.56309863,112410.0,112400.0,0.0001]
[1756132741195,0.50294171,112410.0,112400.0,0.0001]
[1756132741900,0.50294171,112410.0,112400.0,0.0051]
[1756132742248,0.50294171,112410.0,112400.0,0.0001]
[1756132742473,5.50331171,112410.0,112400.0,0.0001]
[1756132742710,5.48938691,112410.0,112400.0,0.0001]
[1756132742934,5.57625656,112410.0,112400.0,0.0001]
[1756132743391,5.57588656,112410.0,112400.0,0.0001]
[1756132743850,5.57625656,112410.0,112400.0,0.0001]
[1756132745317,5.57625656,112410.0,112400.0,0.0101]
[1756132745550,5.57525656,112410.0,112400.0,0.0101]
[1756132746237,5.5891822,112410.0,112400.0,0.0101]
[1756132746712,5.60883859,112410.0,112400.0,0.0101]
[1756132746950,5.60883859,112410.0,112370.0,0.07110163]
[1756132746951,0.5179676,112380.0,112370.0,0.07110163]
[1756132747195,0.5185476,112380.0,112370.0,0.07110163]
[1756132747429,0.17799928,112360.0,112350.0,0.11841753]
[1756132747665,0.17799928,112360.0,112350.0,0.07620163]
[1756132747916,0.17799928,112360.0,112350.0,0.09365065]
[1756132747917,0.20466337,112360.0,112350.0,0.09365065]
[1756132748371,0.54466337,112360.0,112350.0,0.12389837]
[1756132748882,0.57201337,112360.0,112350.0,0.07668247]
[1756132749101,0.57143337,112360.0,112350.0,0.07668247]
[1756132749311,0.58536259,112360.0,112350.0,0.07768247]
[1756132749817,0.58536259,112360.0,112350.0,0.2546976]
[1756132750064,0.40736331,112360.0,112350.0,0.27214662]
[1756132750289,0.38059331,112360.0,112350.0,0.31936252]
[1756132750980,0.36666409,112360.0,112350.0,0.24826089]
[1756132751705,0.36666409,112360.0,112350.0,0.25026089]
[1756132752624,0.36666409,112360.0,112350.0,0.25126089]
[1756132752871,0.54466337,112360.0,112350.0,0.07324576]
[1756132753335,0.54466337,112360.0,112350.0,0.25126089]
[1756132753554,0.36666409,112360.0,112350.0,0.25126089]
[1756132754203,0.380593,112360.0,112350.0,0.25126089]
[1756132754416,0.040593,112360.0,112350.0,0.33814564]
[1756132755301,0.01392891,112360.0,112350.0,0.33814564]
[1756132755746,0.01392891,112360.0,112350.0,0.25126089]
[1756132756279,0.04055958,112360.0,112350.0,0.25126089]
[1756132756592,0.18686624,112380.0,112360.0,0.1954483]
[1756132756823,0.18686624,112380.0,112370.0,0.18298344]
[1756132757269,0.20473292,112390.0,112370.0,0.18298344]
[1756132757490,0.1779676,112380.0,112370.0,0.19747246]
[1756132757939,0.1785476,112380.0,112370.0,0.01948902]
[1756132758163,0.1779676,112380.0,112370.0,0.20043246]
[1756132758382,0.20498583,112380.0,112370.0,0.20043246]
[1756132758554,0.36701823,112380.0,112370.0,0.20043246]
[1756132759359,0.02701823,112380.0,112370.0,0.20043246]
[1756132759959,0.54498583,112380.0,112370.0,0.02244902]
[1756132760404,0.54598583,112380.0,112370.0,0.20043246]
[1756132760612,0.54398583,112380.0,112370.0,0.20043246]
[1756132761224,0.55791303,112380.0,112370.0,0.20043246]
[1756132761453,0.55891303,112380.0,112370.0,0.20043246]
[1756132761855,0.55791303,112380.0,112370.0,0.20043246]
[1756132762057,0.55849303,112380.0,112370.0,0.20043246]
[1756132762261,0.55791303,112380.0,112370.0,0.20043246]
[1756132762458,0.55849303,112380.0,112370.0,0.02244902]
[1756132762686,0.54556583,112380.0,112370.0,0.01744902]
[1756132762899,0.54556583,112380.0,112370.0,0.19543246]
[1756132763094,0.54556583,112380.0,112370.0,0.19747246]
[1756132763311,0.36701823,112380.0,112370.0,0.20043246]
[1756132763738,0.02701823,112380.0,112370.0,0.20043246]
[1756132763990,0.001,112380.0,112370.0,0.20043246]
[1756132764816,0.001,112380.0,112370.0,0.28731721]
[1756132765416,0.001,112380.0,112370.0,1.31966346]
[1756132765849,0.001,112380.0,112370.0,0.35841884]
[1756132766055,0.19187637,112420.0,112400.0,0.19538496]
[1756132766262,0.21689503,112420.0,112400.0,0.19538496]
[1756132766508,0.21689503,112420.0,112400.0,0.19756496]
[1756132767159,0.51850011,112410.0,112400.0,0.19438496]
[1756132767365,0.53517922,112410.0,112400.0,0.01644902]
[1756132767578,0.17793594,112400.0,112380.0,0.18112346]
[1756132767798,0.17793594,112400.0,112390.0,0.18326177]
[1756132767799,0.29385706,112400.0,112390.0,0.18326177]
[1756132768028,0.471793,112400.0,112390.0,0.18326177]
[1756132768424,0.29385706,112400.0,112390.0,0.20071079]
[1756132769223,0.29385706,112400.0,112390.0,0.28759554]
[1756132771577,0.001,112410.0,112400.0,0.19538496]
[1756132771923,0.001,112410.0,112400.0,0.20069496]
[1756132772382,0.17892011,112410.0,112400.0,0.20069496]
[1756132772609,0.001,112410.0,112400.0,0.20069496]
[1756132773356,0.55800627,112420.0,112410.0,0.19536913]
[1756132773578,0.55858627,112420.0,112410.0,0.19536913]
[1756132773802,0.55858627,112420.0,112410.0,0.01744902]
[1756132774718,0.55858627,112420.0,112410.0,0.19536913]
[1756132775443,0.55858627,112420.0,112410.0,0.01744902]
[1756132775911,0.17792011,112410.0,112400.0,0.18211594]
[1756132776133,0.17850011,112410.0,112400.0,0.01844902]
[1756132777011,0.17850011,112410.0,112400.0,0.01744902]
[1756132777452,0.17793594,112400.0,112380.0,0.17802889]
[1756132777661,0.51793594,112400.0,112390.0,0.01744902]
[1756132777886,0.51851594,112400.0,112390.0,0.01744902]
[1756132778110,0.51851594,112400.0,112390.0,0.20071079]
[1756132778333,0.51851594,112400.0,112390.0,0.01957902]
[1756132778565,0.17795177,112390.0,112380.0,0.06475035]
[1756132778796,0.51793594,112400.0,112380.0,0.19763205]
[1756132779030,0.51793594,112400.0,112390.0,0.19540079]
[1756132779328,0.51793594,112400.0,112390.0,0.19858079]
[1756132779567,0.35392494,112400.0,112390.0,0.20071079]
[1756132780279,0.53186088,112400.0,112390.0,0.20071079]
[1756132780497,0.35392494,112400.0,112390.0,0.20071079]
[1756132781372,0.35392494,112400.0,112390.0,0.20171079]
[1756132781841,0.34,112400.0,112390.0,0.20271079]
[1756132784072,0.34,112400.0,112390.0,0.28959554]
[1756132785212,0.35392421,112400.0,112390.0,0.28959554]
[1756132787275,0.53244015,112400.0,112390.0,0.20271079]
[1756132787494,0.53244015,112400.0,112390.0,0.19740079]
[1756132787919,0.53244015,112400.0,112390.0,0.17995177]
[1756132788550,0.35392421,112400.0,112390.0,0.18526177]
[1756132788759,0.53244015,112400.0,112390.0,0.19740079]
[1756132789173,0.35450421,112400.0,112390.0,0.19953079]
[1756132789384,0.35450421,112400.0,112390.0,0.20271079]
[1756132789688,0.35392421,112400.0,112390.0,0.20271079]
[1756132790373,0.53244015,112400.0,112390.0,0.19740079]
[1756132791814,0.53244015,112400.0,112390.0,0.20271079]
[1756132792239,0.35450421,112400.0,112390.0,0.20271079]
[1756132792440,0.35392421,112400.0,112390.0,0.20271079]
[1756132792908,0.53186015,112400.0,112390.0,0.20271079]
[1756132793122,0.53244015,112400.0,112390.0,0.01944902]
[1756132793329,0.53244015,112400.0,112390.0,0.19740079]
[1756132793538,0.51793594,112400.0,112390.0,0.20271079]
[1756132794650,0.51851594,112400.0,112390.0,0.20271079]
[1756132795293,0.51851594,112400.0,112390.0,0.002]
[1756132796139,0.51888594,112400.0,112390.0,0.002]
[1756132796788,0.54565094,112400.0,112390.0,0.002]
[1756132797205,0.54565094,112400.0,112390.0,0.001]
[1756132797422,0.61800809,112400.0,112390.0,0.001]
[1756132797651,0.6319348,112400.0,112390.0,0.001]
[1756132797862,0.67285208,112400.0,112390.0,0.001]
[1756132798306,0.51795177,112390.0,112380.0,8.543e-05]
[1756132798515,0.51853177,112390.0,112380.0,8.543e-05]
[1756132798726,0.51890177,112390.0,112380.0,8.543e-05]
[1756132798948,0.59989043,112390.0,112380.0,8.543e-05]
[1756132800307,0.59952043,112390.0,112380.0,8.543e-05]
[1756132800536,0.51853177,112390.0,112380.0,8.543e-05]
[1756132801417,5.51890177,112390.0,112380.0,8.543e-05]
[1756132801637,0.51799928,112360.0,112350.0,0.0001]
[1756132801874,0.51857928,112360.0,112350.0,0.0001]
[1756132802206,0.51799928,112360.0,112350.0,0.00522]
[1756132802495,0.51857928,112360.0,112350.0,0.00522]
[1756132802694,0.51857928,112360.0,112350.0,0.02266902]
[1756132802695,0.51799928,112360.0,112350.0,0.02266902]
[1756132802840,0.51799928,112360.0,112350.0,0.20068415]
[1756132803424,0.34,112360.0,112350.0,0.20068415]
[1756132803655,0.2047376,112380.0,112370.0,0.01744902]
[1756132803863,0.5185476,112380.0,112370.0,0.01744902]
[1756132804300,0.51798344,112370.0,112360.0,0.02043902]
[1756132804491,0.51798344,112370.0,112360.0,0.02256902]
[1756132804717,0.51856344,112370.0,112360.0,0.02256902]
[1756132804964,0.51856344,112370.0,112360.0,0.01744902]
[1756132805364,0.53249175,112370.0,112360.0,0.01744902]
[1756132805571,0.53249175,112370.0,112360.0,0.02256902]
[1756132806023,0.53191175,112370.0,112360.0,0.2005683]
[1756132806253,0.01392831,112370.0,112360.0,0.2005683]
[1756132807091,0.01392831,112370.0,112360.0,0.2015683]
[1756132807863,0.01392831,112370.0,112360.0,0.4697683]
[1756132808439,0.01392831,112370.0,112360.0,0.4687683]
[1756132808664,0.35392831,112370.0,112360.0,0.55565305]
[1756132808894,0.01392831,112370.0,112360.0,1.25069767]
[1756132809356,0.01392831,112370.0,112360.0,0.28945305]
[1756132809579,0.01392831,112370.0,112360.0,0.2025683]
[1756132810093,0.19191175,112370.0,112360.0,0.2025683]
[1756132810778,0.19191175,112370.0,112360.0,0.2005683]
[1756132811206,0.19249175,112370.0,112360.0,0.2005683]
[1756132811417,0.19249175,112370.0,112360.0,0.2025683]
[1756132811607,0.19191175,112370.0,112360.0,0.2025683]
[1756132811870,0.51856344,112370.0,112360.0,0.02456902]
[1756132812096,0.58821656,112370.0,112360.0,0.01944902]
[1756132812340,0.51856344,112370.0,112360.0,0.01944902]
[1756132812775,0.51856344,112370.0,112360.0,0.02244902]
[1756132813216,0.54533044,112370.0,112360.0,0.02457902]
[1756132813430,0.54533044,112370.0,112360.0,0.02756902]
[1756132813698,0.54533044,112370.0,112360.0,0.02244902]
[1756132815004,0.61766026,112370.0,112360.0,0.005]
[1756132815230,0.6315886,112370.0,112360.0,0.005]
[1756132815453,0.6319586,112370.0,112360.0,0.005]
[1756132815884,0.6319586,112370.0,112360.0,0.003]
[1756132816101,0.17799928,112360.0,112350.0,0.0001]
[1756132816336,0.17857928,112360.0,112350.0,0.0001]
[1756132816935,0.59994507,112360.0,112350.0,0.0001]
[1756132817330,0.59957507,112360.0,112350.0,0.0001]
[1756132817628,0.59994507,112360.0,112350.0,0.0001]
[1756132818169,0.51857928,112360.0,112350.0,0.00223]
[1756132818377,0.51799928,112360.0,112350.0,0.00522]
[1756132818576,0.51857928,112360.0,112350.0,0.00522]
[1756132818785,0.51857928,112360.0,112350.0,0.0001]
[1756132819350,0.51894928,112360.0,112350.0,0.0001]
[1756132819477,0.59967507,112360.0,112350.0,0.0001]
[1756132819877,0.60004507,112360.0,112350.0,0.0001]
[1756132820502,5.60004507,112360.0,112350.0,0.0001]
[1756132821169,5.85004507,112360.0,112350.0,1e-08]
[1756132821360,5.85004507,112360.0,112310.0,0.063505]
[1756132821361,0.51806267,112320.0,112310.0,0.063505]
[1756132821590,0.51864267,112320.0,112310.0,0.0004]
[1756132822039,0.54542467,112320.0,112310.0,0.0004]
[1756132822687,0.54542467,112320.0,112310.0,0.00088084]
[1756132823106,0.54579467,112320.0,112310.0,0.00088084]
[1756132823327,5.54579467,112320.0,112310.0,0.00088084]
[1756132823548,5.65613402,112320.0,112310.0,0.00088084]
[1756132823766,5.68264117,112320.0,112310.0,0.00088084]
[1756132823969,5.80613402,112320.0,112310.0,0.00088084]
[1756132825100,5.82007215,112320.0,112310.0,0.00088084]
[1756132825312,5.82207215,112320.0,112310.0,0.00088084]
[1756132825786,5.82007215,112320.0,112310.0,0.00088084]
[1756132826006,5.83672161,112320.0,112310.0,0.00088084]
[1756132826241,5.67307215,112320.0,112310.0,0.00088084]
[1756132826459,5.87348257,112320.0,112310.0,0.00088084]
[1756132826984,5.87311257,112320.0,112310.0,0.00088084]
[1756132827203,5.61704934,112320.0,112310.0,0.00088084]
[1756132827420,5.61741934,112320.0,112310.0,0.00088084]
[1756132828079,0.51807853,112310.0,112300.0,0.0001]
[1756132828331,5.53531347,112310.0,112300.0,0.00024413]
[1756132828557,0.55663472,112310.0,112300.0,0.00230413]
[1756132828825,0.55663472,112310.0,112300.0,0.00530413]
[1756132829059,0.53473347,112310.0,112300.0,0.00530413]
[1756132829512,0.51807853,112310.0,112300.0,0.00530413]
[1756132829731,0.53466879,112310.0,112300.0,0.00530413]
[1756132830207,0.53466879,112310.0,112300.0,0.00730413]
[1756132830459,0.54295416,112310.0,112300.0,0.00730413]
[1756132830694,0.62167484,112310.0,112300.0,0.00730413]
[1756132830942,0.62167484,112310.0,112300.0,0.18539852]
[1756132830943,0.61338946,112310.0,112300.0,0.18539852]
[1756132831164,0.61338946,112310.0,112300.0,0.20284754]
[1756132831165,0.43531093,112310.0,112300.0,0.20284754]
[1756132831388,0.35659026,112310.0,112300.0,0.20284754]
[1756132831608,0.01659026,112310.0,112300.0,0.20284754]
[1756132832348,0.53466879,112310.0,112300.0,0.20284754]
[1756132832562,0.53466879,112310.0,112300.0,0.20084754]
[1756132832563,0.19466879,112310.0,112300.0,0.20084754]
[1756132833046,0.35659026,112310.0,112300.0,0.20384754]
[1756132834813,0.35659026,112310.0,112300.0,0.20484754]
[1756132835030,0.37052535,112310.0,112300.0,0.20484754]
[1756132835254,0.03052535,112310.0,112300.0,0.29173229]
[1756132835696,0.20860388,112310.0,112300.0,0.02675315]
[1756132836157,0.54918388,112310.0,112300.0,0.00424413]
[1756132836384,0.58424525,112310.0,112300.0,0.00324413]
[1756132837076,0.58461525,112310.0,112300.0,0.00324413]